fUSD/lending_fUSD_20260518
["ID","MTS","AMOUNT","RATE_DAILY","PERIOD"]
[422530198,1779037865000,-354.0,0.000369,14]
[422530201,1779037865000,-323.32,0.00037,15]
[422530202,1779037865000,-160.0,0.00037,120]
[422530203,1779037865000,-152.0,0.00037,2]
[422530204,1779037865000,-150.0,0.00037,2]
[422530205,1779037865000,-150.133,0.00037,2]
[422530206,1779037865000,-181.082,0.00037,2]
[422530207,1779037865000,-365.0,0.00037,2]
[422530213,1779037865000,-174.25,0.0003717,60]
[422530211,1779037865000,-745.65223616,0.00037028,2]
[422530209,1779037865000,-4500.0,0.00037,2]
[422530216,1779037865000,-1892.3783,0.00037179,2]
[422530208,1779037865000,-168.60308888,0.00037,2]
[422530217,1779037865000,-2344.2958,0.00037179,2]
[422530210,1779037865000,-929.95823779,0.00037028,2]
[422530218,1779037865000,-239.731579,0.000372,36]
[422530214,1779037865000,-2263.944,0.00037175,47]
[422530215,1779037865000,-170.646,0.00037175,47]
[422530220,1779037865000,-1223.0,0.00037206,2]
[422530219,1779037865000,-154.29214092,0.000372,120]
[422530223,1779037865000,-505.0,0.00037349,13]
[422530222,1779037865000,-3632.0,0.00037206,2]
[422530246,1779037865000,-170.08,0.00037708,60]
[422530230,1779037865000,-60969.0,0.000376,30]
[422530252,1779037865000,-500.0,0.000378,2]
[422530285,1779037865000,-500.0,0.000378,2]
[422530280,1779037865000,-500.0,0.000378,2]
[422530286,1779037865000,-931.12,0.000378,2]
[422530277,1779037865000,-500.0,0.000378,2]
[422530283,1779037865000,-500.0,0.000378,2]
[422530279,1779037865000,-500.0,0.000378,2]
[422530278,1779037865000,-500.0,0.000378,2]
[422530281,1779037865000,-500.0,0.000378,2]
[422530287,1779037865000,-500.0,0.000378,2]
[422530288,1779037865000,-500.0,0.000378,2]
[422530290,1779037865000,-500.0,0.000378,2]
[422530289,1779037865000,-500.0,0.000378,2]
[422530291,1779037865000,-500.0,0.000378,2]
[422530292,1779037865000,-941.91,0.000378,2]
[422530293,1779037865000,-150.0,0.000378,2]
[422530296,1779037865000,-1003.2076737,0.0003787,2]
[422530295,1779037865000,-170.08,0.00037808,60]
[422530297,1779037865000,-205.75752157,0.0003788,2]
[422530294,1779037865000,-350.0,0.00037808,90]
[422530300,1779037865000,-25967.30969384,0.000379,5]
[422530299,1779037865000,-150.0,0.00037899,2]
[422530301,1779037865000,-1735.5,0.000379,120]
[422530250,1779037865000,-500.0,0.000378,2]
[422530282,1779037865000,-500.0,0.000378,2]
[422530284,1779037865000,-500.0,0.000378,2]
[422530298,1779037865000,-11708.68,0.00037893,104]
[422530276,1779037865000,-500.0,0.000378,2]
[422530275,1779037865000,-500.0,0.000378,2]
[422530248,1779037865000,-500.0,0.000378,2]
[422530254,1779037865000,-500.0,0.000378,2]
[422530253,1779037865000,-500.0,0.000378,2]
[422530257,1779037865000,-500.0,0.000378,2]
[422530256,1779037865000,-500.0,0.000378,2]
[422530255,1779037865000,-500.0,0.000378,2]
[422530259,1779037865000,-500.0,0.000378,2]
[422530260,1779037865000,-500.0,0.000378,2]
[422530262,1779037865000,-500.0,0.000378,2]
[422530263,1779037865000,-500.0,0.000378,2]
[422530261,1779037865000,-500.0,0.000378,2]
[422530258,1779037865000,-500.0,0.000378,2]
[422530264,1779037865000,-500.0,0.000378,2]
[422530270,1779037865000,-500.0,0.000378,2]
[422530271,1779037865000,-500.0,0.000378,2]
[422530273,1779037865000,-500.0,0.000378,2]
[422530267,1779037865000,-500.0,0.000378,2]
[422530269,1779037865000,-500.0,0.000378,2]
[422530274,1779037865000,-500.0,0.000378,2]
[422530265,1779037865000,-500.0,0.000378,2]
[422530268,1779037865000,-500.0,0.000378,2]
[422530266,1779037865000,-500.0,0.000378,2]
[422530272,1779037865000,-500.0,0.000378,2]
[422530343,1779037866000,-200.0,0.00038136,2]
[422530330,1779037866000,-200.0,0.00038136,2]
[422530332,1779037866000,-200.0,0.00038136,2]
[422530337,1779037866000,-200.0,0.00038136,2]
[422530335,1779037866000,-200.0,0.00038136,2]
[422530339,1779037866000,-200.0,0.00038136,2]
[422530336,1779037866000,-200.0,0.00038136,2]
[422530345,1779037866000,-200.0,0.00038136,2]
[422530344,1779037866000,-200.0,0.00038136,2]
[422530341,1779037866000,-200.0,0.00038136,2]
[422530338,1779037866000,-200.0,0.00038136,2]
[422530340,1779037866000,-200.0,0.00038136,2]
[422530352,1779037866000,-200.0,0.00038136,2]
[422530347,1779037866000,-200.0,0.00038136,2]
[422530356,1779037866000,-200.0,0.00038136,2]
[422530357,1779037866000,-200.0,0.00038136,2]
[422530346,1779037866000,-200.0,0.00038136,2]
[422530355,1779037866000,-200.0,0.00038136,2]
[422530349,1779037866000,-200.0,0.00038136,2]
[422530348,1779037866000,-200.0,0.00038136,2]
[422530350,1779037866000,-200.0,0.00038136,2]
[422530351,1779037866000,-200.0,0.00038136,2]
[422530354,1779037866000,-200.0,0.00038136,2]
[422530353,1779037866000,-200.0,0.00038136,2]
[422530331,1779037866000,-200.0,0.00038136,2]
[422530342,1779037866000,-200.0,0.00038136,2]
[422530329,1779037866000,-157.0,0.00038136,2]
[422530305,1779037866000,-692.41765724,0.00038,120]
[422530333,1779037866000,-200.0,0.00038136,2]
[422530310,1779037866000,-151.0,0.00038,120]
[422530303,1779037866000,-505.0,0.0003795,13]
[422530358,1779037866000,-200.0,0.00038136,2]
[422530307,1779037866000,-238667.30348403,0.00038,2]
[422530308,1779037866000,-1560.44371713,0.00038,2]
[422530309,1779037866000,-200.0,0.00038,15]
[422530306,1779037866000,-153.0,0.00038,120]
[422530302,1779037866000,-170.12025715,0.00037908,60]
[422530304,1779037866000,-215.756666,0.00038,39]
[422530312,1779037866000,-200.0,0.00038,120]
[422530320,1779037866000,-9607.43100594,0.000381,33]
[422530316,1779037866000,-152.0,0.00038004,6]
[422530327,1779037866000,-200.0,0.00038136,2]
[422530314,1779037866000,-150.0,0.00038,2]
[422530322,1779037866000,-200.0,0.00038136,2]
[422530311,1779037866000,-1500.0,0.00038,5]
[422530321,1779037866000,-1748.4,0.00038125,30]
[422530318,1779037866000,-1892.3785,0.00038086,2]
[422530317,1779037866000,-168.93,0.00038038,5]
[422530319,1779037866000,-2344.296,0.00038086,2]
[422530323,1779037866000,-200.0,0.00038136,2]
[422530324,1779037866000,-200.0,0.00038136,2]
[422530328,1779037866000,-200.0,0.00038136,2]
[422530334,1779037866000,-200.0,0.00038136,2]
[422530325,1779037866000,-200.0,0.00038136,2]
[422530326,1779037866000,-200.0,0.00038136,2]
[422530313,1779037866000,-152.0,0.00038,30]
[422530360,1779037866000,-200.0,0.00038136,2]
[422530315,1779037866000,-3556.82,0.00038,14]
[422530362,1779037866000,-200.0,0.00038136,2]
[422530393,1779037866000,-2153.0,0.00038329,120]
[422530404,1779037866000,-1508.0,0.00038329,120]
[422530396,1779037866000,-1608.0,0.00038329,120]
[422530394,1779037866000,-1331.0,0.00038329,120]
[422530395,1779037866000,-1331.0,0.00038329,120]
[422530397,1779037866000,-1608.0,0.00038329,120]
[422530400,1779037866000,-1380.5,0.00038329,120]
[422530401,1779037866000,-1380.5,0.00038329,120]
[422530402,1779037866000,-2211.0,0.00038329,120]
[422530398,1779037866000,-1701.5,0.00038329,120]
[422530399,1779037866000,-1701.5,0.00038329,120]
[422530418,1779037866000,-500.0,0.00038356,2]
[422530389,1779037866000,-500.0,0.00038284,120]
[422530403,1779037866000,-1508.0,0.00038329,120]
[422530409,1779037866000,-500.0,0.00038356,2]
[422530406,1779037866000,-2126.5,0.00038329,120]
[422530407,1779037866000,-2126.5,0.00038329,120]
[422530416,1779037866000,-500.0,0.00038356,2]
[422530415,1779037866000,-500.0,0.00038356,2]
[422530413,1779037866000,-500.0,0.00038356,2]
[422530412,1779037866000,-500.0,0.00038356,2]
[422530408,1779037866000,-500.0,0.00038356,2]
[422530411,1779037866000,-500.0,0.00038356,2]
[422530414,1779037866000,-500.0,0.00038356,2]
[422530417,1779037866000,-500.0,0.00038356,2]
[422530361,1779037866000,-200.0,0.00038136,2]
[422530405,1779037866000,-1022.94190175,0.00038329,120]
[422530390,1779037866000,-500.0,0.00038284,120]
[422530410,1779037866000,-500.0,0.00038356,2]
[422530391,1779037866000,-883.7996865,0.00038284,120]
[422530388,1779037866000,-500.0,0.00038284,120]
[422530363,1779037866000,-200.0,0.00038136,2]
[422530366,1779037866000,-336.0,0.00038136,2]
[422530365,1779037866000,-200.0,0.00038136,2]
[422530359,1779037866000,-200.0,0.00038136,2]
[422530367,1779037866000,-174.25,0.0003814,98]
[422530368,1779037866000,-500.0,0.00038165,120]
[422530370,1779037866000,-4790.99295837,0.000382,30]
[422530369,1779037866000,-780.64894198,0.000382,30]
[422530371,1779037866000,-780.64894196,0.000382,30]
[422530375,1779037866000,-500.0,0.00038284,120]
[422530373,1779037866000,-780.64894196,0.000382,30]
[422530372,1779037866000,-4790.99295835,0.000382,30]
[422530364,1779037866000,-200.0,0.00038136,2]
[422530377,1779037866000,-500.0,0.00038284,120]
[422530392,1779037866000,-457.4830834,0.00038284,120]
[422530374,1779037866000,-4790.99295835,0.000382,30]
[422530386,1779037866000,-500.0,0.00038284,120]
[422530384,1779037866000,-500.0,0.00038284,120]
[422530383,1779037866000,-500.0,0.00038284,120]
[422530387,1779037866000,-500.0,0.00038284,120]
[422530382,1779037866000,-500.0,0.00038284,120]
[422530378,1779037866000,-793.8003679,0.00038284,120]
[422530376,1779037866000,-500.0,0.00038284,120]
[422530381,1779037866000,-500.0,0.00038284,120]
[422530385,1779037866000,-500.0,0.00038284,120]
[422530379,1779037866000,-500.0,0.00038284,120]
[422530380,1779037866000,-500.0,0.00038284,120]
[422530465,1779037867000,-300.0,0.00038356,2]
[422530448,1779037867000,-500.0,0.00038356,2]
[422530450,1779037867000,-500.0,0.00038356,2]
[422530449,1779037867000,-500.0,0.00038356,2]
[422530446,1779037867000,-500.0,0.00038356,2]
[422530445,1779037867000,-500.0,0.00038356,2]
[422530455,1779037867000,-500.0,0.00038356,2]
[422530464,1779037867000,-290.81570487,0.00038356,2]
[422530454,1779037867000,-500.0,0.00038356,2]
[422530443,1779037867000,-500.0,0.00038356,2]
[422530451,1779037867000,-500.0,0.00038356,2]
[422530458,1779037867000,-500.0,0.00038356,2]
[422530457,1779037867000,-500.0,0.00038356,2]
[422530459,1779037867000,-500.0,0.00038356,2]
[422530462,1779037867000,-500.0,0.00038356,2]
[422530463,1779037867000,-500.0,0.00038356,2]
[422530456,1779037867000,-500.0,0.00038356,2]
[422530461,1779037867000,-500.0,0.00038356,2]
[422530460,1779037867000,-500.0,0.00038356,2]
[422530467,1779037867000,-300.0,0.00038356,2]
[422530444,1779037867000,-500.0,0.00038356,2]
[422530478,1779037867000,-300.0,0.00038356,2]
[422530453,1779037867000,-500.0,0.00038356,2]
[422530447,1779037867000,-500.0,0.00038356,2]
[422530430,1779037867000,-500.0,0.00038356,2]
[422530441,1779037867000,-500.0,0.00038356,2]
[422530468,1779037867000,-300.0,0.00038356,2]
[422530426,1779037867000,-500.0,0.00038356,2]
[422530421,1779037867000,-500.0,0.00038356,2]
[422530427,1779037867000,-500.0,0.00038356,2]
[422530419,1779037867000,-500.0,0.00038356,2]
[422530420,1779037867000,-500.0,0.00038356,2]
[422530428,1779037867000,-500.0,0.00038356,2]
[422530422,1779037867000,-500.0,0.00038356,2]
[422530423,1779037867000,-500.0,0.00038356,2]
[422530424,1779037867000,-500.0,0.00038356,2]
[422530425,1779037867000,-500.0,0.00038356,2]
[422530429,1779037867000,-500.0,0.00038356,2]
[422530431,1779037867000,-500.0,0.00038356,2]
[422530440,1779037867000,-500.0,0.00038356,2]
[422530432,1779037867000,-500.0,0.00038356,2]
[422530434,1779037867000,-500.0,0.00038356,2]
[422530438,1779037867000,-500.0,0.00038356,2]
[422530433,1779037867000,-500.0,0.00038356,2]
[422530437,1779037867000,-479.53604544,0.00038356,2]
[422530435,1779037867000,-500.0,0.00038356,2]
[422530436,1779037867000,-500.0,0.00038356,2]
[422530439,1779037867000,-500.0,0.00038356,2]
[422530452,1779037867000,-500.0,0.00038356,2]
[422530442,1779037867000,-500.0,0.00038356,2]
[422530477,1779037867000,-300.0,0.00038356,2]
[422530491,1779037867000,-205.501046,0.00038356,90]
[422530470,1779037867000,-300.0,0.00038356,2]
[422530498,1779037867000,-1866.06,0.00038384,60]
[422530500,1779037867000,-300.0,0.00038392,2]
[422530501,1779037867000,-300.0,0.00038392,2]
[422530499,1779037867000,-300.0,0.00038392,2]
[422530497,1779037867000,-227.744999,0.00038374,41]
[422530502,1779037867000,-300.0,0.00038392,2]
[422530506,1779037867000,-4001.4436199,0.00038392,120]
[422530508,1779037867000,-82523.84034153,0.000385,2]
[422530507,1779037867000,-153.0,0.000384,120]
[422530511,1779037867000,-505.0,0.00038551,14]
[422530496,1779037867000,-297.84078377,0.00038356,15]
[422530510,1779037867000,-927.0,0.00038536,2]
[422530515,1779037867000,-877.4772,0.00038729,30]
[422530513,1779037867000,-174.25,0.0003862,110]
[422530518,1779037867000,-12692.223441,0.00038834,2]
[422530471,1779037867000,-300.0,0.00038356,2]
[422530517,1779037867000,-60969.0,0.000388,30]
[422530516,1779037867000,-278.0,0.0003875,120]
[422530512,1779037867000,-12423.25976802,0.000386,120]
[422530520,1779037867000,-150.0,0.00038899,2]
[422530519,1779037867000,-468742.32155187,0.0003888,60]
[422530521,1779037867000,-9268.82919595,0.000389,18]
[422530509,1779037867000,-278.0,0.000385,120]
[422530492,1779037867000,-215.43604957,0.00038356,2]
[422530514,1779037867000,-239.731579,0.000387,43]
[422530494,1779037867000,-2978.40783765,0.00038356,15]
[422530495,1779037867000,-2978.40783765,0.00038356,15]
[422530469,1779037867000,-300.0,0.00038356,2]
[422530466,1779037867000,-300.0,0.00038356,2]
[422530475,1779037867000,-300.0,0.00038356,2]
[422530472,1779037867000,-300.0,0.00038356,2]
[422530474,1779037867000,-300.0,0.00038356,2]
[422530476,1779037867000,-300.0,0.00038356,2]
[422530480,1779037867000,-1000.0,0.00038356,120]
[422530490,1779037867000,-500.0,0.00038356,90]
[422530479,1779037867000,-163.53372958,0.00038356,2]
[422530481,1779037867000,-1000.0,0.00038356,120]
[422530473,1779037867000,-300.0,0.00038356,2]
[422530482,1779037867000,-1000.0,0.00038356,120]
[422530483,1779037867000,-1000.0,0.00038356,120]
[422530505,1779037867000,-309.34,0.00038392,2]
[422530504,1779037867000,-300.0,0.00038392,2]
[422530493,1779037867000,-300.0,0.00038356,30]
[422530484,1779037867000,-1000.0,0.00038356,120]
[422530503,1779037867000,-300.0,0.00038392,2]
[422530489,1779037867000,-500.0,0.00038356,90]
[422530486,1779037867000,-1000.0,0.00038356,120]
[422530488,1779037867000,-500.0,0.00038356,90]
[422530485,1779037867000,-1000.0,0.00038356,120]
[422530487,1779037867000,-1000.0,0.00038356,120]
[422530541,1779037868000,-2000.0,0.0003895,2]
[422530543,1779037868000,-2000.0,0.0003895,2]
[422530542,1779037868000,-10000.0,0.0003895,2]
[422530540,1779037868000,-1164.25,0.0003895,2]
[422530546,1779037868000,-173.55923615,0.00038972,2]
[422530547,1779037868000,-17543.71174424,0.00039,2]
[422530545,1779037868000,-2339.1459,0.00038964,30]
[422530552,1779037868000,-154.0,0.00013699,2]
[422530550,1779037868000,-603.13002352,0.00012943,2]
[422530549,1779037868000,-3612.56118494,0.00012346,2]
[422530551,1779037868000,-151.0,0.00012943,2]
[422530555,1779037868000,-15086.41289013,0.00021102,2]
[422530553,1779037868000,-155.93137852,0.00013699,2]
[422530554,1779037868000,-439.0,0.00019837,5]
[422530539,1779037868000,-1262.8161,0.0003895,2]
[422530548,1779037868000,-339.12719406,0.00012346,2]
[422530544,1779037868000,-10000.0,0.0003895,2]
[422530526,1779037868000,-151.0,0.0001425,2]
[422530538,1779037868000,-182.23719796,0.00038937,2]
[422530522,1779037868000,-5720.86731783,0.00011666,2]
[422530523,1779037868000,-253.527364,0.00011968,2]
[422530558,1779037868000,-200.0,0.00038136,2]
[422530525,1779037868000,-151.0,0.00013698,2]
[422530529,1779037868000,-599.46,0.0002956,30]
[422530527,1779037868000,-713.0,0.00019837,5]
[422530524,1779037868000,-151.0,0.00012311,2]
[422530528,1779037868000,-599.46,0.00029271,7]
[422530532,1779037868000,-91259.72261892,0.000389,18]
[422530531,1779037868000,-10810.88657553,0.000349,2]
[422530530,1779037868000,-599.46,0.00029848,2]
[422530533,1779037868000,-153.0,0.000389,120]
[422530534,1779037868000,-1735.5,0.000389,120]
[422530536,1779037868000,-300.0,0.000389,14]
[422530535,1779037868000,-2000.0,0.000389,7]
[422530537,1779037868000,-500.0,0.000389,14]
[422530559,1779037868000,-200.0,0.00038136,2]
[422530589,1779037868000,-2557.44843548,0.00039222,11]
[422530557,1779037868000,-200.0,0.00038136,2]
[422530583,1779037868000,-505.0,0.00039151,15]
[422530580,1779037868000,-151.0,0.000391,120]
[422530581,1779037868000,-174.25,0.0003911,118]
[422530577,1779037868000,-1586.0,0.00039006,11]
[422530595,1779037868000,-2557.44843548,0.00039222,11]
[422530585,1779037868000,-1000.0,0.00039183,2]
[422530584,1779037868000,-173.55923615,0.00039172,2]
[422530590,1779037868000,-2557.44843548,0.00039222,11]
[422530591,1779037868000,-2557.44843548,0.00039222,11]
[422530587,1779037868000,-193.1056996,0.00039205,30]
[422530588,1779037868000,-2557.44843549,0.00039222,11]
[422530593,1779037868000,-2557.44843548,0.00039222,11]
[422530594,1779037868000,-2557.44843548,0.00039222,11]
[422530592,1779037868000,-2557.44843548,0.00039222,11]
[422530556,1779037868000,-200.0,0.00038136,2]
[422530582,1779037868000,-185.95632445,0.00039143,2]
[422530579,1779037868000,-173.55923615,0.00039072,2]
[422530586,1779037868000,-400.0,0.00039183,2]
[422530575,1779037868000,-150.0,0.00039,2]
[422530578,1779037868000,-182.23719796,0.00039037,2]
[422530561,1779037868000,-200.0,0.00038136,2]
[422530560,1779037868000,-200.0,0.00038136,2]
[422530562,1779037868000,-200.0,0.00038136,2]
[422530563,1779037868000,-200.0,0.00038136,2]
[422530564,1779037868000,-200.0,0.00038136,2]
[422530571,1779037868000,-4735.7784801,0.00039,3]
[422530568,1779037868000,-341.61,0.00039,30]
[422530567,1779037868000,-200.0,0.00039,16]
[422530566,1779037868000,-13773.24583455,0.00039,2]
[422530569,1779037868000,-644.0,0.00039,120]
[422530565,1779037868000,-200.0,0.00038136,2]
[422530570,1779037868000,-160.0,0.00039,120]
[422530572,1779037868000,-175.09081166,0.00039,5]
[422530574,1779037868000,-230.0,0.00039,2]
[422530573,1779037868000,-152.0,0.00039,30]
[422530576,1779037868000,-278.0,0.00039,120]
[422530619,1779037869000,-150.0,0.00039412,2]
[422530608,1779037869000,-2313.0,0.00039326,11]
[422530617,1779037869000,-150.0,0.00039412,2]
[422530618,1779037869000,-150.0,0.00039412,2]
[422530614,1779037869000,-2305.0,0.00039399,11]
[422530616,1779037869000,-313.72,0.000394,120]
[422530609,1779037869000,-193.1056996,0.00039342,30]
[422530610,1779037869000,-185.95632445,0.00039343,2]
[422530602,1779037869000,-537.69,0.00039243,120]
[422530598,1779037869000,-185.95632445,0.00039243,2]
[422530603,1779037869000,-278.0,0.0003925,120]
[422530605,1779037869000,-153.0,0.000393,120]
[422530599,1779037869000,-323.2,0.00039243,120]
[422530600,1779037869000,-1421.9,0.00039243,120]
[422530607,1779037869000,-372.61,0.000393,120]
[422530601,1779037869000,-3173.13,0.00039243,120]
[422530597,1779037869000,-2557.44843548,0.00039222,11]
[422530596,1779037869000,-2557.44843548,0.00039222,11]
[422530611,1779037869000,-164.16086875,0.00039369,120]
[422530604,1779037869000,-1000.0,0.00039265,120]
[422530612,1779037869000,-163.0,0.00039399,11]
[422530606,1779037869000,-334.5992,0.000393,120]
[422530613,1779037869000,-2313.0,0.00039399,11]
[422530615,1779037869000,-1586.0,0.00039399,11]
[422530634,1779037869000,-2797.00221552,0.00013274,2]
[422530638,1779037869000,-322.0,0.00019837,5]
[422530639,1779037869000,-4140.48578448,0.00022274,2]
[422530636,1779037869000,-6055.0,0.00019274,2]
[422530637,1779037869000,-970.0,0.00019837,5]
[422530635,1779037869000,-6055.0,0.00016274,2]
[422530633,1779037869000,-3257.99778448,0.00013274,2]
[422530631,1779037869000,-2710.9381089,0.00039452,9]
[422530632,1779037869000,-2996.6363419,0.00039452,9]
[422530630,1779037869000,-2998.16256182,0.00039452,9]
[422530640,1779037869000,-1827.00861842,0.00022274,2]
[422530627,1779037869000,-76493.30265916,0.00039452,9]
[422530629,1779037869000,-10299.30169177,0.00039452,9]
[422530628,1779037869000,-447.0,0.00019837,5]
[422530625,1779037869000,-150.0,0.00039412,2]
[422530620,1779037869000,-209.63176895,0.00039412,2]
[422530626,1779037869000,-500.0,0.0003945,120]
[422530622,1779037869000,-150.0,0.00039412,2]
[422530624,1779037869000,-150.0,0.00039412,2]
[422530623,1779037869000,-150.0,0.00039412,2]
[422530621,1779037869000,-150.0,0.00039412,2]
[422530641,1779037870000,259.425297,0.00029527,120]
[422530642,1779038003000,-150.0,0.00011665,2]
[422530643,1779038013000,2000.0,0.00028011,120]
[422530644,1779038191000,-150.0,0.00011665,2]
[422530647,1779038383000,-240.92919272,0.00011565,2]
[422530648,1779038461000,500.0,0.00028132,120]
[422530649,1779038572000,-250.0,0.00011615,2]
[422530651,1779038626000,193.14,6.633e-05,2]
[422530652,1779038679000,499.58,0.00030137,120]
[422530655,1779038762000,1000.0,0.00030136,120]
[422530654,1779038762000,1000.0,0.00030136,120]
[422530653,1779038762000,-250.0,0.00011657,2]
[422530656,1779038768000,1000.0,0.00030136,120]
[422530657,1779038780000,1321.986798,0.00030136,120]
[422530658,1779038818000,-150.0,0.00011665,2]
[422530659,1779038818000,-125.69854056,0.00011665,2]
[422530661,1779038980000,500.0,0.00029452,120]
[422530662,1779039014000,-150.0,0.00011665,2]
[422530688,1779039032000,-500.0,0.00013698,2]
[422530690,1779039032000,-500.0,0.00013698,2]
[422530689,1779039032000,-500.0,0.00013698,2]
[422530686,1779039032000,-6801.3071,0.00013598,2]
[422530684,1779039032000,-154.05302278,0.00013498,2]
[422530682,1779039032000,-172.29,0.00013403,2]
[422530685,1779039032000,-99095.1757,0.00013498,2]
[422530691,1779039032000,-483.44966111,0.00013698,2]
[422530704,1779039032000,-500.0,0.00013698,2]
[422530693,1779039032000,-500.0,0.00013698,2]
[422530702,1779039032000,-500.0,0.00013698,2]
[422530698,1779039032000,-500.0,0.00013698,2]
[422530701,1779039032000,-500.0,0.00013698,2]
[422530700,1779039032000,-500.0,0.00013698,2]
[422530696,1779039032000,-500.0,0.00013698,2]
[422530683,1779039032000,-304.0,0.0001345,2]
[422530692,1779039032000,-500.0,0.00013698,2]
[422530703,1779039032000,-500.0,0.00013698,2]
[422530665,1779039032000,-2000.0,0.00011666,2]
[422530681,1779039032000,-26787.69482807,0.00013017,2]
[422530695,1779039032000,-500.0,0.00013698,2]
[422530663,1779039032000,-250.0,0.00011666,2]
[422530666,1779039032000,-215.0785988,0.00011728,2]
[422530664,1779039032000,-33183.3746,0.00011666,2]
[422530667,1779039032000,-208.48490792,0.00011728,2]
[422530668,1779039032000,-208.96,0.00012249,2]
[422530669,1779039032000,-255.0,0.00012738,2]
[422530671,1779039032000,-250.0,0.00012832,2]
[422530687,1779039032000,-2500.0,0.00013598,2]
[422530670,1779039032000,-725.86,0.00012821,2]
[422530672,1779039032000,-250.0,0.00012832,2]
[422530677,1779039032000,-150.99,0.00013006,2]
[422530675,1779039032000,-2000.0,0.00012899,2]
[422530678,1779039032000,-9999.99,0.00013006,2]
[422530676,1779039032000,-172.54,0.00013006,2]
[422530673,1779039032000,-434.64,0.00012899,2]
[422530679,1779039032000,-299.99,0.00013006,2]
[422530680,1779039032000,-999.99,0.00013006,2]
[422530674,1779039032000,-771.92,0.00012899,2]
[422530699,1779039032000,-500.0,0.00013698,2]
[422530719,1779039032000,-500.0,0.00013698,2]
[422530706,1779039032000,-500.0,0.00013698,2]
[422530730,1779039032000,-525.7,0.00013698,2]
[422530729,1779039032000,-525.7,0.00013698,2]
[422530731,1779039032000,-525.7,0.00013698,2]
[422530732,1779039032000,-525.7,0.00013698,2]
[422530733,1779039032000,-525.7,0.00013698,2]
[422530739,1779039032000,-500.0,0.00013698,2]
[422530735,1779039032000,-525.7,0.00013698,2]
[422530734,1779039032000,-525.7,0.00013698,2]
[422530737,1779039032000,-500.0,0.00013698,2]
[422530738,1779039032000,-500.0,0.00013698,2]
[422530736,1779039032000,-500.0,0.00013698,2]
[422530740,1779039032000,-508.45785621,0.00013698,2]
[422530741,1779039032000,-500.0,0.00013698,2]
[422530744,1779039032000,-500.0,0.00013698,2]
[422530743,1779039032000,-500.0,0.00013698,2]
[422530745,1779039032000,-500.0,0.00013698,2]
[422530705,1779039032000,-500.0,0.00013698,2]
[422530728,1779039032000,-525.7,0.00013698,2]
[422530724,1779039032000,-525.7,0.00013698,2]
[422530742,1779039032000,-500.0,0.00013698,2]
[422530722,1779039032000,-309.02129379,0.00013698,2]
[422530715,1779039032000,-500.0,0.00013698,2]
[422530725,1779039032000,-525.7,0.00013698,2]
[422530708,1779039032000,-500.0,0.00013698,2]
[422530707,1779039032000,-500.0,0.00013698,2]